bitfinex/quotes_SOLUSD_20250123
["timestamp","ask_amount","ask_price","bid_price","bid_amount"]
[1737625211974,18.77001622,247.78,247.71,0.03]
[1737625212967,23.776884,247.77,247.71,0.03]
[1737625213774,23.776884,247.75,247.71,0.03]
[1737625213958,23.776884,247.73,247.71,0.03]
[1737625215173,6.621,247.72,247.71,0.03]
[1737625215469,20.41471622,247.72,247.71,0.03]
[1737625215775,1.6447,247.72,247.71,0.03]
[1737625216351,5.5425,247.78,247.71,18.80001622]
[1737625216567,5.5425,247.78,247.73,18.77001622]
[1737625216771,1.6225,247.78,247.73,18.77001622]
[1737625218163,23.839884,247.81,247.73,18.77001622]
[1737625219771,23.839884,247.81,247.71,18.80001622]
[1737625219961,23.776884,247.79,247.71,18.80001622]
[1737625220165,23.776884,247.79,247.71,0.03]
[1737625220871,100.27001622,247.78,247.71,0.03]
[1737625221581,44.09640022,247.72,247.71,0.03]
[1737625222494,25.326384,247.72,247.71,0.03]
[1737625222677,1.5495,247.72,247.71,0.03]
[1737625223084,81.5,247.75,247.71,0.03]
[1737625223575,23.776884,247.77,247.71,0.03]
[1737625223776,1.5233,247.78,247.71,18.80001622]
[1737625223960,1.5233,247.78,247.73,18.77001622]
[1737625224378,23.839884,247.81,247.75,18.77001622]
[1737625224990,23.839884,247.81,247.73,18.77001622]
[1737625225782,23.839884,247.81,247.75,18.77001622]
[1737625225973,23.839884,247.81,247.71,0.03]
[1737625225974,0.063,247.81,247.77,18.77001622]
[1737625226859,0.063,247.81,247.79,18.77001622]
[1737625227988,0.063,247.81,247.8,0.60512907]
[1737625228194,0.063,247.81,247.8,19.37514529]
[1737625230772,0.063,247.81,247.79,18.77001622]
[1737625231279,0.063,247.81,247.8,19.37512079]
[1737625232787,0.063,247.81,247.8,43.15200479]
[1737625232967,0.063,247.89,247.88,18.77001622]
[1737625234195,0.063,247.89,247.88,36.20001622]
[1737625234491,0.063,247.89,247.88,18.77001622]
[1737625235071,0.063,247.89,247.88,36.20001622]
[1737625236091,0.063,247.89,247.88,36.80489639]
[1737625236485,0.063,247.89,247.88,36.20001622]
[1737625237711,0.063,247.89,247.88,29.14191964]
[1737625238480,0.063,247.89,247.88,17.43]
[1737625239384,0.063,247.89,247.82,11.71191964]
[1737625239582,0.063,247.89,247.77,6.642]
[1737625239583,0.063,247.89,247.84,11.71191964]
[1737625240481,0.063,247.89,247.86,11.71191964]
[1737625240680,0.063,247.89,247.88,11.71191964]
[1737625241210,0.063,247.89,247.86,31.71191964]
[1737625241586,0.063,247.89,247.88,11.71191964]
[1737625243701,0.063,247.89,247.88,18.73799127]
[1737625244386,0.063,247.89,247.88,19.342933]
[1737625245620,0.063,247.89,247.88,20.342933]
[1737625245786,0.063,247.89,247.88,19.342933]
[1737625249823,0.063,247.89,247.88,43.119817]
[1737625249993,0.063,247.89,247.88,49.211017]
[1737625250198,0.063,247.89,247.88,50.211017]
[1737625252017,0.063,247.89,247.88,49.211017]
[1737625252322,0.063,247.89,247.88,18.73799127]
[1737625254587,0.063,247.89,247.88,19.34288321]
[1737625255024,0.063,247.89,247.88,43.11976721]
[1737625255191,0.063,247.89,247.88,19.34288321]
[1737625258003,0.063,247.89,247.88,18.73799127]
[1737625259426,0.063,247.89,247.88,19.34288575]
[1737625259928,0.063,247.89,247.88,18.73799127]
[1737625262146,0.063,247.89,247.88,19.34285628]
[1737625263113,0.063,247.89,247.88,18.73799127]
[1737625263517,0.063,247.89,247.88,19.34284498]
[1737625265839,0.063,247.89,247.88,32.31442269]
[1737625268620,0.063,247.89,247.88,56.09130669]
[1737625268816,0.03,247.93,247.92,20.0]
[1737625269034,0.03,247.93,247.92,67.80074134]
[1737625269428,0.03,247.93,247.92,68.80074134]
[1737625270027,0.03,247.93,247.92,67.80074134]
[1737625270846,0.063,247.97,247.96,11.70956898]
[1737625273056,0.063,247.97,247.94,11.70956898]
[1737625274044,0.063,247.97,247.92,11.70956898]
[1737625274249,0.063,247.97,247.9,11.70956898]
[1737625275626,0.063,247.97,247.92,11.70956898]
[1737625277748,0.063,247.97,247.84,1.613035]
[1737625277749,11.70956898,247.94,247.84,11.70956898]
[1737625278122,11.70956898,247.94,247.86,11.70956898]
[1737625278541,17.02236898,247.96,247.88,11.70956898]
[1737625278837,5.3128,247.96,247.88,11.70956898]
[1737625280364,5.3128,247.96,247.88,11.73956898]
[1737625280657,5.3128,247.96,247.9,11.70956898]
[1737625280857,1.5128,247.96,247.94,11.70956898]
[1737625282233,0.063,247.97,247.94,11.70956898]
[1737625282435,0.063,247.97,247.96,11.70956898]
[1737625283760,0.063,247.97,247.94,11.70956898]
[1737625283967,0.063,247.97,247.9,11.70956898]
[1737625284861,23.776884,247.94,247.88,0.03]
[1737625285076,25.376184,247.92,247.88,0.03]
[1737625285861,35.48645298,247.89,247.88,0.03]
[1737625286260,23.776884,247.84,247.81,0.03]
[1737625286779,3.84,247.86,247.81,0.03]
[1737625287466,3.84,247.86,247.82,11.70956898]
[1737625290794,3.84,247.86,247.81,0.03]
[1737625290795,3.84,247.86,247.84,11.70956898]
[1737625291283,1.5993,247.92,247.84,11.70956898]
[1737625291454,1.5993,247.92,247.87,11.70956898]
[1737625291660,1.5993,247.92,247.89,11.70956898]
[1737625291992,0.063,247.97,247.91,11.70956898]
[1737625292355,0.063,247.97,247.93,11.70956898]
[1737625293378,0.063,247.97,247.95,11.70956898]
[1737625302183,0.063,247.97,247.95,29.11956898]
[1737625304688,0.063,247.97,247.95,11.70956898]
[1737625304978,0.063,247.97,247.96,0.60476896]
[1737625305290,0.063,247.97,247.95,11.70956898]
[1737625305959,0.063,247.97,247.95,12.31431806]
[1737625307581,0.063,247.97,247.96,25.87]
[1737625310197,0.03,248.02,247.99,20.0]
[1737625310489,0.03,248.02,248.01,11.70956898]
[1737625311758,0.03,248.02,248.01,12.31418635]
[1737625313391,0.03,248.02,248.01,35.48645298]
[1737625313595,0.03,248.02,248.01,36.09096559]
[1737625314158,0.03,248.04,248.03,31.70956898]
[1737625314363,0.03,248.04,248.03,32.31407451]
[1737625314558,0.03,248.04,248.03,56.09095851]
[1737625314787,0.063,248.22,248.12,20.0]
[1737625314977,0.063,248.22,248.17,11.70956898]
[1737625315172,0.063,248.22,248.19,11.70956898]
[1737625316186,0.063,248.22,248.21,11.70956898]
[1737625317777,0.063,248.22,248.21,12.31361846]
[1737625317986,0.063,248.22,248.21,36.09050246]
[1737625318579,6.28940775,248.35,248.24,20.0]
[1737625318777,6.28940775,248.35,248.32,11.70956898]
[1737625318981,1.509,248.36,248.32,11.70956898]
[1737625320195,1.509,248.36,248.34,11.70956898]
[1737625320569,20.0,248.34,248.28,11.70956898]
[1737625320766,11.70956898,248.3,248.2,11.70956898]
[1737625320994,23.776884,248.27,248.2,11.70956898]
[1737625321997,4.028,248.26,248.2,11.70956898]
[1737625322696,23.776884,248.27,248.2,11.70956898]
[1737625325281,27.804784,248.27,248.2,11.70956898]
[1737625325483,11.70956898,248.3,248.2,11.73956898]
[1737625325794,4.0273,248.31,248.22,11.70956898]
[1737625325990,11.70956898,248.32,248.22,11.70956898]
[1737625326180,93.20956898,248.34,248.24,11.70956898]
[1737625326373,23.776884,248.33,248.24,11.70956898]
[1737625326804,23.776884,248.33,248.2,0.03]
[1737625326805,3.8,248.33,248.26,11.70956898]
[1737625327296,5.372,248.36,248.28,11.70956898]
[1737625327497,5.372,248.36,248.3,11.70956898]
[1737625328302,5.372,248.36,248.32,11.70956898]
[1737625328600,5.372,248.36,248.34,11.70956898]
[1737625328793,5.372,248.36,248.32,11.70956898]
[1737625329281,1.572,248.36,248.32,11.70956898]
[1737625329486,1.572,248.36,248.28,11.70956898]
[1737625330585,1.572,248.36,248.3,11.70956898]
[1737625330897,1.572,248.36,248.32,11.70956898]
[1737625331806,0.063,248.36,248.34,11.70956898]
[1737625334093,4.0895,248.36,248.3,11.70956898]
[1737625334301,35.48645298,248.35,248.26,11.70956898]
[1737625335005,23.776884,248.33,248.26,11.70956898]
[1737625336501,1.5926,248.34,248.28,11.70956898]
[1737625338008,1.5926,248.34,248.3,11.70956898]
[1737625338492,1.5926,248.34,248.32,11.70956898]
[1737625339095,3.843,248.36,248.32,11.70956898]
[1737625339311,3.843,248.36,248.34,11.70956898]
[1737625340409,23.776884,248.35,248.28,11.70956898]
[1737625340707,23.776884,248.3,248.22,11.70956898]
[1737625340903,11.70956898,248.31,248.22,11.70956898]
[1737625341296,23.776884,248.3,248.22,11.70956898]
[1737625341697,23.776884,248.3,248.2,11.73956898]
[1737625341913,23.776884,248.3,248.22,11.70956898]
[1737625342404,7.6745,248.32,248.24,11.70956898]
[1737625342623,23.776884,248.31,248.24,11.70956898]
[1737625343314,23.776884,248.25,248.2,0.03]
[1737625343686,23.776884,248.22,248.2,0.03]
[1737625343887,9.8809,248.21,248.2,0.03]
[1737625344314,38.686584,248.21,248.2,0.03]
[1737625345803,57.39952708,248.21,248.2,0.03]
[1737625348318,56.39952708,248.21,248.2,0.03]
[1737625349504,37.686584,248.21,248.2,0.03]
[1737625350618,9.8809,248.21,248.2,0.03]
[1737625350918,46.34982708,248.21,248.2,0.03]
[1737625351094,47.34982708,248.21,248.2,0.03]
[1737625351919,46.34982708,248.21,248.2,0.03]
[1737625353116,1.0,248.15,248.04,18.71294308]
[1737625353318,23.776884,248.1,248.02,18.71294308]
[1737625354035,23.776884,248.1,248.04,18.71294308]
[1737625355015,4.0302,248.13,248.06,18.71294308]
[1737625355334,4.03,248.14,248.06,18.71294308]
[1737625355511,23.776884,248.13,248.06,18.71294308]
[1737625355940,87.9487,248.15,248.06,18.71294308]
[1737625356135,23.776884,248.14,248.06,18.71294308]
[1737625357335,18.71294308,248.08,248.0,18.71294308]
[1737625357545,18.71294308,248.08,247.98,18.71294308]
[1737625357910,23.776884,248.07,247.98,18.71294308]
[1737625358122,23.776884,248.07,247.97,0.03]
[1737625358123,18.71294308,248.03,247.97,0.03]
[1737625358418,23.776884,248.02,247.97,0.03]
[1737625358837,24.776884,248.02,247.97,0.03]
[1737625359014,18.71294308,248.01,247.97,0.03]
[1737625359644,23.776884,247.99,247.97,0.03]
[1737625359845,26.404084,247.98,247.97,0.03]
[1737625360145,1.0,247.93,247.82,18.74294308]
[1737625360326,18.71294308,247.91,247.82,18.74294308]
[1737625360531,27.636884,247.9,247.82,18.74294308]
[1737625362616,27.636884,247.9,247.84,18.71294308]
[1737625363217,3.86,247.9,247.84,18.71294308]
[1737625363519,3.86,247.9,247.86,18.71294308]
[1737625364221,24.99644308,247.97,247.88,18.71294308]
[1737625364422,3.86,247.96,247.9,18.71294308]
[1737625364935,23.776884,247.95,247.88,18.71294308]
[1737625365134,3.86,247.96,247.9,18.71294308]
[1737625365321,3.86,247.97,247.9,18.71294308]
[1737625366040,3.86,247.97,247.92,18.71294308]
[1737625368150,3.86,247.97,247.86,18.71294308]
[1737625368151,18.71294308,247.95,247.86,18.71294308]
[1737625368357,23.776884,247.9,247.82,18.74294308]
[1737625368560,23.776884,247.86,247.82,0.03]
[1737625370352,23.776884,247.84,247.82,0.03]
[1737625372555,3.88,247.85,247.82,0.03]
[1737625373752,3.88,247.85,247.82,18.74294308]
[1737625375125,3.88,247.85,247.82,0.03]
[1737625375455,23.776884,247.84,247.82,0.03]
[1737625376142,106.276884,247.84,247.82,0.03]
[1737625376343,42.48982708,247.83,247.82,0.03]
[1737625376546,54.60982708,247.83,247.82,0.03]
[1737625376853,37.896884,247.82,247.81,0.03]
[1737625377236,37.896884,247.82,247.66,0.03]
[1737625377237,63.48982708,247.72,247.66,0.03]
[1737625377552,75.60982708,247.72,247.66,0.03]
[1737625378156,63.48982708,247.72,247.66,0.03]
[1737625378655,67.52662708,247.72,247.66,0.03]
[1737625378840,66.52662708,247.72,247.66,0.03]
[1737625379550,66.36982708,247.72,247.66,0.03]
[1737625379747,47.656884,247.72,247.66,0.03]
[1737625380757,3.88,247.72,247.68,18.71294308]
[1737625381054,3.88,247.72,247.66,0.03]
[1737625381055,3.9,247.75,247.7,18.71294308]
[1737625382334,3.9,247.75,247.66,0.03]
[1737625382335,3.9,247.75,247.72,18.71294308]
[1737625384359,3.9,247.75,247.7,18.71294308]
[1737625386434,3.9,247.75,247.72,18.71294308]
[1737625386846,3.9,247.75,247.74,18.71294308]
[1737625387757,0.063,247.8,247.74,18.71294308]
[1737625387936,3.943,247.8,247.74,18.71294308]
[1737625388763,3.943,247.8,247.76,18.71294308]
[1737625389159,3.943,247.8,247.72,18.71294308]
[1737625391139,7.9786,247.8,247.72,18.71294308]
[1737625393564,105.276884,247.79,247.7,18.71294308]
[1737625393766,105.276884,247.79,247.68,18.71294308]
[1737625394064,18.71294308,247.78,247.68,18.71294308]
[1737625394864,23.776884,247.76,247.68,18.71294308]
[1737625395186,23.776884,247.78,247.7,18.71294308]
[1737625396265,81.5,247.75,247.66,18.74294308]
[1737625397560,23.776884,247.73,247.66,18.74294308]
[1737625398275,23.656884,247.73,247.66,0.03]
[1737625398440,24.656884,247.73,247.66,0.03]
[1737625398869,23.656884,247.73,247.66,0.03]
[1737625399061,24.656884,247.73,247.66,0.03]
[1737625399458,81.5,247.75,247.66,18.74294308]
[1737625400267,85.5363,247.75,247.66,18.74294308]
[1737625401067,23.776884,247.74,247.68,18.71294308]
[1737625402479,27.813384,247.74,247.66,0.03]
[1737625403261,25.776884,247.72,247.66,0.03]
[1737625403465,23.776884,247.67,247.66,0.03]
[1737625403668,35.52259932,247.67,247.66,0.03]
[1737625404160,47.63259932,247.67,247.66,0.03]
[1737625404481,48.63259932,247.67,247.66,0.03]
[1737625405473,48.63259932,247.67,247.57,0.03]
[1737625405474,20.0,247.6,247.57,0.03]
[1737625405669,1.0,247.61,247.57,0.03]
[1737625405670,18.80526803,247.58,247.57,0.03]
[1737625406081,42.58215203,247.58,247.57,0.03]
[1737625411481,18.80526803,247.58,247.57,0.03]
[1737625411953,22.62526803,247.58,247.57,0.03]
[1737625412466,3.82,247.58,247.57,0.03]
[1737625412857,27.596884,247.59,247.57,0.03]
[1737625413078,3.82,247.59,247.57,0.03]
[1737625414763,27.596884,247.59,247.57,0.03]
[1737625414967,23.776884,247.58,247.57,0.03]
[1737625417492,27.576884,247.58,247.57,0.03]
[1737625419287,3.8,247.58,247.57,0.03]
[1737625420056,23.776884,247.61,247.57,0.03]
[1737625420259,23.776884,247.59,247.57,0.03]
[1737625420484,18.80526803,247.62,247.57,0.03]
[1737625420790,3.8,247.61,247.57,0.03]
[1737625423985,38.80526803,247.62,247.57,0.03]
[1737625424187,42.58526803,247.62,247.57,0.03]
[1737625424593,23.776884,247.61,247.57,0.03]
[1737625424766,23.776884,247.59,247.57,0.03]
[1737625425267,42.58215203,247.58,247.57,0.03]
[1737625425681,35.53075822,247.58,247.57,0.03]
[1737625426568,39.56975822,247.58,247.57,0.03]
[1737625427391,52.67975822,247.58,247.57,0.03]
[1737625427690,65.43363244,247.58,247.57,0.03]
[1737625428075,65.43363244,247.58,247.56,0.03]
[1737625428076,35.886884,247.57,247.56,0.03]
[1737625428374,1.0,247.52,247.46,0.03]
[1737625428585,35.53075822,247.47,247.46,0.03]
[1737625429300,52.42075822,247.47,247.46,0.03]
[1737625429602,21.0,247.44,247.41,0.03]
[1737625429799,24.776884,247.46,247.41,0.03]
[1737625430109,35.53075822,247.42,247.41,0.03]
[1737625430886,39.57245822,247.42,247.41,0.03]
[1737625431080,52.68245822,247.42,247.41,0.03]
[1737625432312,1.0,247.36,247.32,0.03]
[1737625432509,35.53075822,247.33,247.32,0.03]
[1737625437102,48.28463244,247.33,247.32,0.03]
[1737625437497,35.53075822,247.33,247.32,0.03]
[1737625439613,36.53075822,247.33,247.32,0.03]
[1737625439999,40.57385822,247.33,247.32,0.03]
[1737625440218,20.0,247.24,247.12,11.75387422]
[1737625440405,23.776884,247.19,247.1,11.75387422]
[1737625442201,7.8449,247.23,247.12,11.75387422]
[1737625442202,11.75387422,247.22,247.12,11.75387422]
[1737625442404,3.8,247.23,247.14,11.75387422]
[1737625442812,11.75387422,247.22,247.12,11.75387422]
[1737625443317,23.776884,247.21,247.12,11.75387422]
[1737625444225,23.776884,247.19,247.1,11.75387422]
[1737625445022,11.75387422,247.15,247.07,0.03]
[1737625445212,23.776884,247.14,247.07,0.03]
[1737625446099,105.276884,247.14,247.07,0.03]
[1737625446310,81.5,247.14,247.07,11.78387422]
[1737625447023,81.5,247.14,247.09,11.75387422]
[1737625447616,23.776884,247.18,247.12,0.03]
[1737625447801,3.82,247.19,247.12,0.03]
[1737625447999,3.82,247.19,247.16,11.75387422]
[1737625448898,3.82,247.19,247.14,11.75387422]
[1737625449099,3.82,247.19,247.12,11.78387422]
[1737625450516,3.82,247.19,247.12,0.03]
[1737625450699,11.75387422,247.16,247.12,0.03]
[1737625451519,23.776884,247.13,247.12,0.03]
[1737625452001,27.823284,247.13,247.12,0.03]
[1737625452404,29.823284,247.13,247.12,0.03]
[1737625452629,43.776884,247.08,247.07,0.03]
[1737625452920,67.28463244,247.08,247.07,0.03]
[1737625453813,93.67422672,247.08,247.07,0.03]
[1737625454012,23.776884,247.04,246.9,6.0494]
[1737625454205,18.89367136,247.01,246.93,18.89367136]
[1737625454905,18.89367136,246.99,246.91,18.89367136]
[1737625455104,18.89367136,246.99,246.9,6.0494]
[1737625455514,23.776884,246.98,246.9,6.0494]
[1737625456020,22.71367136,247.03,246.93,18.89367136]
[1737625456426,23.776884,247.0,246.93,18.89367136]
[1737625457318,18.89367136,247.01,246.93,18.89367136]
[1737625457499,22.71367136,247.03,246.93,18.89367136]
[1737625458202,18.89367136,247.01,246.91,18.89367136]
[1737625458721,23.776884,247.0,246.91,18.89367136]
[1737625458926,3.82,247.03,246.93,18.89367136]
[1737625458927,22.71367136,247.03,246.93,18.89367136]
[1737625459533,23.776884,247.02,246.93,18.89367136]
[1737625459838,22.73367136,247.05,246.95,18.89367136]
[1737625460505,22.75367136,247.05,246.95,18.89367136]
[1737625462927,3.86,247.05,246.97,18.89367136]
[1737625465632,18.89367136,247.09,246.99,18.89367136]
[1737625465808,3.84,247.07,246.99,18.89367136]
[1737625467031,18.89367136,247.09,246.99,18.89367136]
[1737625467235,3.82,247.08,246.99,18.89367136]
[1737625468319,18.89367136,247.07,246.99,18.89367136]
[1737625468832,18.89367136,247.07,246.97,18.89367136]
[1737625469432,18.89367136,247.05,246.94,18.89367136]
[1737625469728,18.89367136,247.05,246.96,18.89367136]
[1737625469937,18.89367136,247.07,246.98,18.89367136]
[1737625471539,3.82,247.08,247.0,18.89367136]
[1737625471740,85.32,247.1,247.03,18.89367136]
[1737625471932,0.063,247.07,247.03,18.89367136]
[1737625473730,0.063,247.07,247.03,11.79710463]
[1737625478227,0.063,247.07,247.05,11.79710463]
[1737625480313,0.063,247.07,247.06,1.60705323]
[1737625480514,3.8,247.21,247.09,20.0]
[1737625480815,3.8,247.21,247.08,21.0]
[1737625480816,3.8,247.21,247.18,11.79710463]
[1737625481234,3.8,247.21,247.16,11.79710463]
[1737625481618,3.8,247.21,247.14,11.79710463]
[1737625483844,3.863,247.21,247.14,11.79710463]
[1737625485726,0.063,247.21,247.2,11.79710463]
[1737625488133,0.063,247.21,247.18,11.79710463]
[1737625488841,0.063,247.21,247.2,11.79710463]
[1737625489015,0.063,247.21,247.2,23.59420926]
[1737625489951,0.063,247.24,247.23,21.0]
[1737625490121,0.063,247.24,247.23,32.79710463]
[1737625490649,0.063,247.24,247.23,33.79710463]
[1737625491149,0.063,247.24,247.23,32.79710463]
[1737625491334,0.063,247.24,247.23,31.79710463]
[1737625495246,0.063,247.24,247.23,11.79710463]
[1737625495547,0.063,247.24,247.21,11.79710463]
[1737625495923,0.063,247.24,247.23,11.79710463]
[1737625496443,0.063,247.24,247.23,31.79710463]
[1737625497054,0.063,247.24,247.23,11.79710463]
[1737625497419,0.063,247.24,247.23,32.79710463]
[1737625497626,0.063,247.24,247.23,12.79710463]
[1737625497958,0.063,247.24,247.23,38.22418863]
[1737625498123,0.063,247.24,247.23,37.22418863]
[1737625499553,0.063,247.24,247.23,13.44730463]
[1737625499760,0.063,247.24,247.23,11.79710463]
[1737625501854,0.063,247.32,247.25,1.0]
[1737625502066,0.063,247.32,247.31,11.79710463]
[1737625504365,0.063,247.32,247.25,11.79710463]
[1737625504550,4.1064,247.32,247.23,11.79710463]
[1737625504746,0.063,247.32,247.25,11.79710463]
[1737625504942,0.063,247.32,247.27,11.79710463]
[1737625505149,0.063,247.32,247.25,11.79710463]
[1737625505848,0.063,247.32,247.23,11.79710463]
[1737625506050,0.063,247.32,247.25,11.79710463]
[1737625506249,0.063,247.32,247.29,11.79710463]
[1737625506577,0.063,247.32,247.31,11.79710463]
[1737625507974,0.063,247.32,247.31,12.40340642]
[1737625508277,0.063,247.32,247.31,25.20051105]
[1737625508969,1.6283,247.49,247.4,20.0]
[1737625509176,0.063,247.49,247.48,11.79710463]
[1737625510049,0.063,247.49,247.46,11.79710463]
[1737625510370,0.063,247.49,247.48,11.79710463]
[1737625511654,0.063,247.49,247.48,18.80092258]
[1737625515060,0.063,247.49,247.46,18.80092258]
[1737625515249,0.063,247.49,247.44,18.80092258]
[1737625516181,0.063,247.49,247.48,18.80092258]
[1737625516552,3.86,247.59,247.51,18.80092258]
[1737625516755,3.86,247.59,247.53,18.80092258]
[1737625517971,18.80092258,247.58,247.49,18.80092258]
[1737625518176,3.86,247.59,247.53,18.80092258]
[1737625518557,3.86,247.59,247.55,18.80092258]
[1737625518758,6.0901,247.62,247.55,18.80092258]
[1737625519063,5.406,247.63,247.55,18.80092258]
[1737625519268,5.406,247.63,247.57,18.80092258]
[1737625519485,1.526,247.63,247.57,18.80092258]
[1737625520779,42.57780658,247.62,247.51,18.80092258]
[1737625520983,18.80092258,247.6,247.51,18.80092258]
[1737625521860,4.0389,247.59,247.51,18.80092258]
[1737625522469,23.776884,247.58,247.51,18.80092258]
[1737625522674,23.776884,247.58,247.45,18.80092258]
[1737625522675,23.776884,247.55,247.45,18.80092258]
[1737625522982,23.776884,247.53,247.43,18.80092258]
[1737625523184,1.6286,247.54,247.45,18.80092258]
[1737625523493,1.6286,247.54,247.47,18.80092258]
[1737625526360,5.6684,247.54,247.45,18.80092258]
[1737625526670,23.776884,247.53,247.43,18.80092258]
[1737625526992,18.80092258,247.52,247.41,18.80092258]
[1737625527194,81.5,247.53,247.43,18.80092258]
[1737625527881,4.04,247.52,247.43,18.80092258]
[1737625528074,23.776884,247.51,247.41,18.80092258]
[1737625528381,23.776884,247.51,247.32,24.81642258]
[1737625528382,23.776884,247.47,247.39,18.80092258]
[1737625528693,23.776884,247.45,247.37,18.80092258]
[1737625528992,23.776884,247.45,247.35,18.80092258]
[1737625529173,1.5892,247.44,247.37,18.80092258]
[1737625530394,1.5892,247.44,247.39,18.80092258]
[1737625530581,3.86,247.46,247.41,18.80092258]
[1737625531293,1.5059,247.5,247.33,1.0]
[1737625531294,1.5059,247.5,247.43,18.80092258]
[1737625531493,5.3659,247.5,247.43,18.80092258]
[1737625531872,1.5059,247.5,247.43,18.80092258]
[1737625532085,5.3659,247.5,247.43,18.80092258]
[1737625533677,5.3659,247.5,247.43,11.75820488]
[1737625536096,5.3659,247.5,247.37,11.78820488]
[1737625536097,23.776884,247.45,247.37,11.78820488]
[1737625536299,23.776884,247.45,247.37,0.03]
[1737625536998,23.776884,247.43,247.37,0.03]
[1737625537596,15.79950488,247.44,247.37,0.03]
[1737625537806,20.0,247.45,247.37,11.78820488]
[1737625538185,93.25820488,247.48,247.37,11.78820488]
[1737625538506,81.5,247.48,247.41,11.75820488]
[1737625539392,5.3659,247.5,247.43,11.75820488]
[1737625542902,23.776884,247.49,247.43,1.23]
[1737625544008,17.12410488,247.5,247.43,1.23]
[1737625544188,5.3659,247.5,247.45,11.75820488]
[1737625544683,5.3659,247.5,247.45,12.98820488]
[1737625544984,11.75820488,247.56,247.45,12.98820488]
[1737625544985,3.84,247.54,247.47,11.75820488]
[1737625545707,3.84,247.54,247.47,12.98820488]
[1737625547002,1.5322,247.56,247.47,12.98820488]
[1737625547205,3.84,247.55,247.49,11.75820488]
[1737625547505,3.84,247.55,247.49,36.50820488]
[1737625548109,27.616884,247.55,247.49,24.75]
[1737625548608,3.84,247.55,247.49,36.50820488]
[1737625550010,3.84,247.55,247.51,11.75820488]
[1737625551093,81.5,247.57,247.51,11.75820488]
[1737625552515,3.883,247.59,247.53,11.75820488]
[1737625552899,0.063,247.59,247.53,11.75820488]
[1737625553091,0.063,247.59,247.53,36.50820488]
[1737625553299,0.063,247.59,247.55,11.75820488]
[1737625556714,0.063,247.59,247.57,11.75820488]
[1737625556922,0.063,247.59,247.55,11.75820488]
[1737625560916,0.063,247.59,247.57,11.75820488]
[1737625561613,0.063,247.59,247.55,11.75820488]
[1737625562493,0.063,247.59,247.53,11.75820488]
[1737625562704,0.063,247.59,247.49,11.75820488]
[1737625562904,7.839,247.58,247.49,11.75820488]
[1737625563218,19.59720488,247.58,247.49,11.75820488]
[1737625564219,25.436184,247.57,247.47,11.78820488]
[1737625564424,23.776884,247.55,247.47,11.78820488]
[1737625564726,11.75820488,247.56,247.47,0.03]
[1737625564922,1.6593,247.57,247.49,11.75820488]
[1737625567208,39.57448888,247.56,247.47,0.03]
[1737625567413,23.776884,247.53,247.47,0.03]
[1737625567927,1.6593,247.57,247.47,11.78820488]
[1737625567928,13.41750488,247.57,247.47,11.78820488]
[1737625568510,1.6593,247.57,247.49,11.75820488]
[1737625568917,1.6593,247.57,247.49,11.78820488]
[1737625570432,23.776884,247.56,247.49,0.03]
[1737625570603,11.75820488,247.55,247.49,0.03]
[1737625572702,15.79790488,247.55,247.49,0.03]
[1737625573225,4.0397,247.55,247.49,0.03]
[1737625573819,81.5,247.54,247.49,0.03]
[1737625574125,85.5397,247.54,247.49,0.03]
[1737625575223,81.5,247.52,247.49,0.03]
[1737625575428,23.776884,247.51,247.49,0.03]
[1737625575632,93.25820488,247.52,247.49,0.03]